bitfinex/quotes_ETHUSD_20241203
["timestamp","ask_amount","ask_price","bid_price","bid_amount"]
[1733189400220,0.8247,3636.8,3635.6,2.65137794]
[1733189400420,0.53888588,3636.2,3636.0,2.65137794]
[1733189400665,0.8247,3636.8,3635.7,3.0]
[1733189400873,0.8247,3636.8,3636.0,0.028]
[1733189401221,1.08134728,3636.8,3636.0,0.028]
[1733189401420,0.8247,3636.8,3636.0,0.028]
[1733189401662,0.55,3636.7,3636.0,0.028]
[1733189401824,0.8247,3636.8,3636.0,0.028]
[1733189401825,0.55,3636.5,3636.0,0.028]
[1733189402261,0.53730849,3636.2,3636.0,0.028]
[1733189402672,1.322,3636.1,3636.0,0.028]
[1733189402989,1.322,3636.1,3634.4,2.65137794]
[1733189402990,0.55,3636.0,3634.4,2.65137794]
[1733189403195,0.55,3636.0,3634.4,2.92617794]
[1733189403400,0.55,3635.8,3634.5,0.30835607]
[1733189404155,0.55,3635.8,3634.5,3.30835607]
[1733189404355,0.55,3635.8,3634.9,3.0]
[1733189404604,1.5828725,3636.1,3635.0,0.02750458]
[1733189404903,0.55,3635.9,3635.0,0.05488233]
[1733189405107,0.55,3635.9,3635.0,0.62550836]
[1733189405268,0.7761,3636.1,3635.0,0.62550836]
[1733189405269,0.55,3636.0,3635.0,0.59800378]
[1733189405601,0.7761,3636.1,3635.1,0.02750268]
[1733189405755,0.53730849,3636.2,3635.3,3.0]
[1733189405996,0.25662359,3636.1,3635.3,3.0]
[1733189406156,0.53730849,3636.2,3635.4,0.56513779]
[1733189406392,0.53730849,3636.2,3635.3,3.02737775]
[1733189407483,0.55,3636.1,3635.3,3.02737775]
[1733189407796,0.55,3636.1,3635.4,0.02750366]
[1733189408296,0.55,3636.1,3635.3,3.02737775]
[1733189408666,0.55,3636.1,3635.4,0.02750364]
[1733189408861,0.76405311,3636.1,3635.3,3.02737775]
[1733189410281,0.76405311,3636.1,3635.3,3.05488143]
[1733189410599,0.53730849,3636.2,3635.3,3.02737775]
[1733189411253,0.79404725,3636.2,3635.3,3.02737775]
[1733189411496,0.53730849,3636.2,3635.3,3.02737775]
[1733189412257,0.25677183,3636.1,3635.3,3.02737775]
[1733189412602,1.308,3636.0,3635.3,0.02737775]
[1733189412891,0.7678,3635.7,3635.0,0.105]
[1733189413096,0.55,3635.6,3635.0,0.105]
[1733189415060,0.7976,3636.0,3635.4,3.0]
[1733189415261,0.7526,3636.4,3635.7,2.65137794]
[1733189415472,0.7526,3636.4,3635.7,0.0272]
[1733189416362,0.55,3636.3,3635.7,0.0272]
[1733189417897,0.25674493,3636.9,3635.7,0.0272]
[1733189417898,0.25680492,3636.8,3636.2,3.0]
[1733189418099,0.7703,3637.5,3636.8,3.0]
[1733189418263,1.0271038,3637.5,3636.8,0.0272]
[1733189418463,2.30586574,3638.1,3636.8,0.0272]
[1733189418464,0.55282842,3636.9,3636.8,3.0272]
[1733189419301,0.7703,3637.9,3636.8,3.0272]
[1733189419456,0.25673134,3637.8,3636.8,3.0272]
[1733189419656,2.57519087,3638.1,3636.8,3.0272]
[1733189419657,0.55,3637.6,3636.8,0.0272]
[1733189419860,0.55585686,3637.1,3636.8,0.0272]
[1733189420260,0.55,3636.9,3636.8,0.0272]
[1733189420661,0.55,3636.9,3636.2,0.22835249]
[1733189420908,0.55,3636.9,3636.0,3.02749782]
[1733189421301,0.55,3636.9,3636.0,3.0]
[1733189421461,0.55,3636.7,3636.0,0.23042031]
[1733189421662,0.55,3636.7,3635.9,2.65137794]
[1733189422191,0.55,3636.5,3635.9,2.65137794]
[1733189422397,0.55,3636.5,3635.9,2.88599874]
[1733189422766,0.55,3636.5,3636.0,3.0]
[1733189423708,0.55,3636.5,3636.0,3.02749934]
[1733189424293,0.8201,3636.6,3636.0,3.0]
[1733189424466,0.8201,3636.6,3636.0,3.59139987]
[1733189424664,1.38418336,3636.6,3636.0,3.59139987]
[1733189425274,1.38418336,3636.6,3636.0,3.0]
[1733189425477,0.55,3636.5,3635.9,0.2626208]
[1733189425916,0.55,3636.5,3635.9,0.028]
[1733189426283,0.55,3636.3,3635.9,0.028]
[1733189427921,0.5593501,3636.1,3635.9,0.028]
[1733189428085,0.55,3636.0,3635.9,0.028]
[1733189428398,0.71593501,3636.0,3635.9,0.028]
[1733189430125,1.54653501,3636.0,3635.9,0.028]
[1733189430332,1.54653501,3636.0,3635.0,0.105]
[1733189430333,0.55,3635.8,3635.0,0.105]
[1733189430476,2.53105312,3635.6,3635.0,0.105]
[1733189430825,0.55,3635.4,3635.0,0.105]
[1733189431128,0.7637,3635.3,3635.0,0.105]
[1733189431284,0.55,3635.2,3635.0,0.105]
[1733189434632,0.7637,3635.3,3635.0,0.105]
[1733189434834,0.752,3636.3,3635.2,0.0272]
[1733189435006,1.11481328,3636.3,3635.2,0.05470476]
[1733189435197,1.11481328,3636.3,3635.2,0.0272]
[1733189435551,0.752,3636.3,3635.4,3.0]
[1733189435842,0.752,3636.3,3635.4,3.0272]
[1733189436197,0.5424382,3636.2,3635.4,3.0272]
[1733189437968,0.55,3635.9,3635.4,0.0272]
[1733189438301,0.7615,3636.0,3635.0,0.105]
[1733189438540,0.7615,3635.7,3635.0,0.105]
[1733189438723,0.55,3635.6,3635.0,0.105]
[1733189439048,0.55,3635.4,3635.0,0.105]
[1733189439212,0.55,3635.6,3635.0,0.105]
[1733189440739,0.55,3635.6,3635.0,0.1082]
[1733189440940,0.55,3635.6,3635.0,0.07875224]
[1733189442455,0.69968938,3635.6,3635.0,0.07875224]
[1733189442750,0.7615,3635.7,3635.0,0.07875224]
[1733189442902,1.42644228,3636.0,3635.0,3.07875224]
[1733189443106,1.94395312,3636.1,3635.0,3.07875224]
[1733189443303,0.9510089,3636.0,3635.0,3.07875224]
[1733189443503,0.7935,3636.1,3635.0,3.07875224]
[1733189443791,0.7935,3636.1,3635.1,0.57301302]
[1733189444238,0.55,3636.0,3635.1,0.57301302]
[1733189444443,0.55,3636.0,3635.0,0.07875224]
[1733189444656,0.56192613,3635.2,3635.0,0.07875224]
[1733189445202,0.56192613,3635.2,3635.0,0.10625964]
[1733189445707,0.56192613,3635.2,3635.0,0.07875224]
[1733189446126,0.55,3635.1,3635.0,0.07875224]
[1733189453237,0.74079261,3635.1,3635.0,0.07875224]
[1733189456771,0.826,3635.0,3633.7,2.65137794]
[1733189456936,0.55,3634.9,3633.7,2.65137794]
[1733189457577,0.55,3634.9,3633.8,0.02751582]
[1733189457738,0.55,3634.7,3633.9,0.23718744]
[1733189458748,0.55,3635.0,3634.0,2.65137794]
[1733189459005,0.55,3635.0,3633.9,0.26470024]
[1733189459006,0.56192613,3635.2,3634.4,2.65137794]
[1733189459204,0.7935,3635.4,3634.5,0.28087607]
[1733189459423,0.7935,3635.4,3634.5,3.28087607]
[1733189459424,0.55388173,3634.6,3634.5,3.28087607]
[1733189460043,0.55388173,3634.6,3634.5,3.51971542]
[1733189460337,0.55,3634.5,3634.3,0.1573828]
[1733189465913,1.3661,3634.4,3634.3,0.1573828]
[1733189466137,0.7846,3634.3,3632.8,2.65137794]
[1733189466379,0.55388173,3634.6,3632.8,2.65137794]
[1733189466380,0.7846,3634.1,3632.8,2.65137794]
[1733189466554,0.55,3633.8,3632.0,0.30261927]
[1733189466761,0.7846,3633.7,3632.2,2.65137794]
[1733189466912,0.55,3633.6,3632.3,0.31597591]
[1733189467113,0.55162346,3633.0,3632.3,0.31597591]
[1733189467343,0.55,3632.9,3632.3,0.34557591]
[1733189467734,0.55,3632.9,3632.3,3.34557591]
[1733189468756,0.55,3633.0,3632.3,3.34557591]
[1733189469158,0.55,3633.0,3631.2,0.9846]
[1733189469159,0.7641,3632.7,3630.9,0.2751]
[1733189469369,2.65137794,3631.3,3630.4,1.101827]
[1733189469521,0.7641,3631.6,3628.0,14.18]
[1733189469522,0.55,3631.2,3630.0,2.65137794]
[1733189469741,0.55,3631.5,3630.0,0.26513779]
[1733189470061,0.55,3631.5,3629.4,0.1]
[1733189470062,0.55,3631.5,3629.7,0.02754633]
[1733189470254,0.55,3631.5,3629.4,0.1]
[1733189470255,0.55,3631.5,3629.4,0.1275427]
[1733189470554,0.55,3631.1,3630.1,2.65137794]
[1733189470750,0.55,3631.1,3629.7,2.65137794]
[1733189470986,0.55,3631.1,3629.8,3.02754319]
[1733189471287,0.55,3630.9,3629.7,0.02737775]
[1733189474362,0.55,3630.3,3629.7,0.02737775]
[1733189475640,0.55,3630.3,3629.7,0.05492594]
[1733189475829,0.55,3630.3,3629.7,3.02737775]
[1733189476026,0.55,3630.3,3629.8,0.6176703]
[1733189476261,0.7641,3631.0,3629.8,0.6176703]
[1733189476464,0.56426642,3630.6,3630.1,3.0]
[1733189476674,0.56426642,3630.6,3630.2,0.02754332]
[1733189477234,0.56426642,3630.6,3630.2,0.05492107]
[1733189477465,0.56426642,3630.6,3630.3,0.62042464]
[1733189477677,0.776,3631.6,3630.5,3.0]
[1733189477875,0.01494502,3633.0,3630.3,0.62042464]
[1733189477876,0.776,3632.1,3631.2,3.0]
[1733189478093,0.01494502,3633.0,3631.2,3.0]
[1733189478094,0.54546155,3632.4,3631.5,3.14932528]
[1733189478269,0.8174,3632.9,3631.6,3.02753241]
[1733189478590,3.14932528,3634.2,3631.6,3.02753241]
[1733189478591,0.55951842,3633.0,3632.0,3.0]
[1733189478739,0.8024,3633.3,3632.1,0.02752784]
[1733189479089,0.8024,3634.5,3632.4,3.0]
[1733189479384,0.8024,3634.5,3633.1,3.14932528]
[1733189479543,0.8024,3634.5,3633.1,3.17670303]
[1733189480046,1.72567969,3636.1,3627.6,6.65692187]
[1733189480047,0.7711,3633.5,3630.7,0.1]
[1733189480233,0.7711,3633.0,3630.3,3.14932528]
[1733189480435,0.7711,3632.7,3630.3,3.14932528]
[1733189480683,0.7711,3632.7,3629.5,0.2]
[1733189480684,0.7711,3632.7,3630.7,3.14932528]
[1733189480975,0.7711,3632.7,3630.8,3.14932528]
[1733189481142,0.54656405,3631.7,3630.8,3.14932528]
[1733189481344,0.55,3631.6,3630.8,3.14932528]
[1733189481791,0.7693,3631.5,3630.8,3.14932528]
[1733189482095,0.54656405,3631.7,3630.9,3.0]
[1733189482096,0.55,3631.4,3630.9,3.0]
[1733189482280,0.55,3631.6,3630.9,3.0]
[1733189482792,0.55,3631.6,3630.8,3.15012528]
[1733189483002,0.55,3631.6,3630.8,0.0008]
[1733189483354,0.55,3631.4,3630.8,0.0008]
[1733189483558,0.55,3631.2,3630.8,0.0008]
[1733189485586,0.55,3631.0,3630.8,0.0008]
[1733189485798,1.11210684,3631.0,3630.8,0.0008]
[1733189488159,1.11210684,3631.0,3629.6,3.14932528]
[1733189489302,0.55,3631.0,3629.6,3.14932528]
[1733189490398,0.55,3631.0,3630.0,3.14932528]
[1733189490602,0.778,3631.1,3629.6,0.66568769]
[1733189490603,0.778,3631.1,3630.4,3.14932528]
[1733189490760,0.18693,3631.3,3630.1,3.0]
[1733189490761,0.53853024,3631.0,3630.8,3.14932528]
[1733189490960,0.1,3632.9,3630.8,3.14932528]
[1733189490961,0.7881,3632.6,3630.8,3.14932528]
[1733189491166,0.7881,3632.6,3630.8,3.17652528]
[1733189491807,0.54564301,3631.3,3630.8,3.17652528]
[1733189492305,0.55,3631.2,3630.8,0.0272]
[1733189493012,0.55,3631.2,3630.8,3.0272]
[1733189493169,0.8103,3631.6,3631.1,3.14932528]
[1733189493568,0.8103,3631.6,3630.8,0.64485253]
[1733189493765,0.8103,3631.6,3630.8,3.0272]
[1733189494463,0.55,3631.2,3630.8,3.0272]
[1733189494695,0.7819,3633.0,3631.1,3.14932528]
[1733189494915,0.55286605,3631.6,3631.5,3.14932528]
[1733189495266,0.7819,3633.0,3631.5,3.14932528]
[1733189495599,0.56295626,3631.8,3631.5,3.14932528]
[1733189495764,0.56295626,3631.8,3631.5,3.17652528]
[1733189496218,0.55,3631.7,3631.5,0.0272]
[1733189496528,0.74337563,3631.7,3631.5,0.0272]
[1733189499853,0.74337563,3631.7,3631.1,3.42442528]
[1733189500828,0.55,3631.7,3631.5,3.14932528]
[1733189501035,0.55,3631.7,3631.5,3.42442528]
[1733189501558,0.55,3631.7,3631.5,3.42762528]
[1733189502147,0.55,3631.7,3631.5,0.2783]
[1733189502315,0.55,3631.7,3631.5,0.0032]
[1733189505383,0.7686,3632.8,3631.7,3.0]
[1733189505589,2.55645231,3633.1,3632.7,3.14932528]
[1733189505740,2.30586574,3633.1,3632.7,3.42442528]
[1733189505943,0.53942331,3633.0,3632.7,3.42762528]
[1733189506180,0.53942331,3633.0,3632.9,0.2751]
[1733189506554,0.53942331,3633.0,3632.9,0.2783]
[1733189506765,2.30586574,3633.1,3632.9,0.2783]
[1733189506974,2.30586574,3633.1,3632.9,0.0032]
[1733189507460,2.85730441,3633.1,3632.9,0.0032]
[1733189507969,2.30586574,3633.1,3632.9,0.0032]
[1733189509085,2.30586574,3633.1,3632.9,0.6420345]
[1733189509288,2.30586574,3633.1,3632.9,0.6695566]
[1733189509443,2.30586574,3633.1,3632.9,0.6420345]
[1733189509650,1.13954858,3633.7,3632.9,0.6420345]
[1733189509851,1.13954858,3633.7,3633.6,6.14932528]
[1733189513189,1.13954858,3633.7,3633.6,6.78726618]
[1733189513756,0.7891,3634.8,3633.6,6.78726618]
[1733189513951,0.7891,3634.8,3634.4,3.14932528]
[1733189514586,0.54645169,3634.7,3634.4,3.14932528]
[1733189515886,0.54645169,3634.7,3634.4,3.15252528]
[1733189516457,0.55,3634.6,3634.4,0.0032]
[1733189516652,0.73855517,3634.6,3634.4,0.0032]
[1733189517288,0.54645169,3634.7,3634.5,3.0]
[1733189517900,0.8052,3635.3,3634.5,3.0]
[1733189518751,0.56029427,3634.9,3634.5,3.0]
[1733189520485,0.56029427,3634.9,3634.8,3.14932528]
[1733189520714,0.56029427,3634.9,3634.8,3.15252528]
[1733189521017,0.7951,3635.6,3634.8,3.15252528]
[1733189521316,0.56038945,3635.3,3634.8,3.15252528]
[1733189521677,0.55,3635.2,3634.8,3.15252528]
[1733189522998,0.56038945,3635.3,3634.8,3.15252528]
[1733189523296,0.7795,3636.3,3635.3,3.0]
[1733189523501,0.7795,3636.3,3635.7,3.14932528]
[1733189523791,0.7795,3636.3,3635.7,0.0032]
[1733189524384,0.54260193,3636.0,3635.7,0.0032]
[1733189524583,1.14133952,3637.0,3635.7,0.0032]
[1733189524784,1.07113488,3636.9,3636.1,3.14932528]
[1733189525036,1.13914564,3637.3,3636.9,0.9]
[1733189525335,0.55455206,3638.8,3637.3,3.0]
[1733189525621,0.8086,3639.5,3638.8,3.0]
[1733189525808,0.55003634,3638.9,3638.8,0.0032]
[1733189526687,0.8086,3639.5,3638.8,0.0032]
[1733189527112,0.55618355,3639.1,3638.8,0.0032]
[1733189528024,0.55,3639.0,3638.8,0.0032]
[1733189528230,1.326,3638.9,3638.8,0.0032]
[1733189528523,0.55,3638.8,3637.9,3.14932528]
[1733189529288,0.55,3638.8,3638.3,3.14932528]
[1733189530100,0.55,3638.8,3637.9,3.14932528]
[1733189530828,0.55,3638.8,3638.3,0.0248]
[1733189530829,1.10051775,3638.4,3638.3,0.0248]
[1733189531186,1.01921836,3638.9,3638.3,0.0248]
[1733189531187,1.01921836,3638.9,3638.3,3.17412528]
[1733189531423,0.2,3640.3,3638.3,3.17412528]
[1733189531424,0.8204,3639.7,3638.3,3.17412528]
[1733189531633,0.55359818,3638.9,3638.3,3.17412528]
[1733189532238,0.772,3638.8,3638.3,0.0248]
[1733189532593,0.55,3638.7,3638.3,0.0248]
[1733189532898,0.55,3638.5,3638.3,0.0248]
[1733189537614,0.55,3638.5,3637.9,3.14932528]
[1733189537860,0.55359818,3638.9,3638.3,3.14932528]
[1733189538970,0.55359818,3638.9,3638.7,3.14932528]
[1733189540523,0.55359818,3638.9,3638.8,3.0]
[1733189540926,0.769,3640.0,3638.8,3.0]
[1733189541167,0.769,3640.0,3639.1,3.14932528]
[1733189541878,0.53953687,3639.4,3639.1,3.14932528]
[1733189542233,0.769,3640.0,3639.1,3.14932528]
[1733189542448,0.5474591,3639.5,3639.1,3.14932528]
[1733189542741,0.55,3639.4,3639.1,3.14932528]
[1733189542963,0.55,3639.4,3638.4,0.23816423]
[1733189542964,0.55,3639.4,3638.8,3.0]
[1733189543277,0.8303,3639.3,3638.3,3.14932528]
[1733189543423,0.74277591,3639.2,3637.9,3.40881118]
[1733189543979,0.55714182,3638.6,3637.9,3.40881118]
[1733189544769,0.55714182,3638.6,3638.0,3.0]
[1733189545737,0.55714182,3638.6,3637.9,3.18007088]
[1733189545738,1.3669,3638.5,3637.9,0.0307456]
[1733189545937,0.55,3638.3,3637.9,0.0307456]
[1733189548733,0.55,3638.3,3637.9,3.18007088]
[1733189548971,0.2,3639.9,3637.9,3.18007088]
[1733189549265,0.8008,3639.0,3637.9,3.18007088]
[1733189549564,0.56043254,3638.4,3637.9,3.18007088]
[1733189552068,0.56043254,3638.4,3637.9,0.0307456]
[1733189552576,0.7685,3638.2,3637.9,0.0307456]
[1733189552742,0.73789325,3638.1,3637.9,0.0307456]
[1733189555893,0.55,3637.9,3636.5,0.2751]
[1733189556793,0.55,3637.9,3636.4,0.2751]
[1733189557182,0.824,3638.0,3636.7,3.14932528]
[1733189557383,0.824,3638.0,3637.2,3.14932528]
[1733189559269,0.55025726,3637.9,3637.2,3.14932528]
[1733189560267,0.55025726,3637.9,3636.9,3.0]
[1733189560798,0.55025726,3637.9,3636.5,3.0]
[1733189561365,0.55025726,3637.9,3636.9,3.0]
[1733189561567,0.55025726,3637.9,3636.9,3.02749286]
[1733189561787,0.55025726,3637.9,3636.9,3.0274929]
[1733189562111,0.55025726,3637.9,3637.3,3.14932528]
[1733189562295,0.818,3638.4,3637.7,3.14932528]
[1733189562595,0.818,3638.4,3637.4,3.0]
[1733189562796,1.36001749,3638.4,3636.9,3.14932528]
[1733189563001,0.818,3638.3,3636.6,3.0]
[1733189563590,0.55,3637.9,3636.6,3.0]
[1733189563789,0.778,3637.8,3636.6,3.0]
[1733189564295,0.55643607,3637.5,3636.6,3.0]
[1733189564510,0.55643607,3637.5,3636.5,3.14932528]
[1733189564693,0.55643607,3637.5,3636.9,3.14932528]
[1733189564876,0.15600175,3638.2,3637.0,3.02749421]
[1733189565057,0.7695,3638.3,3637.0,3.0]
[1733189565262,0.5506026,3637.6,3637.0,3.0]
[1733189565567,0.7695,3638.3,3637.0,3.0]
[1733189566460,0.53959605,3637.7,3637.0,3.0]
[1733189566705,0.53959605,3637.7,3637.0,3.64670075]
[1733189566911,0.7695,3638.3,3637.1,0.2751]
[1733189567366,0.54344834,3637.8,3637.1,0.2751]
[1733189569379,0.76,3637.7,3637.1,0.2751]
[1733189569924,0.76,3637.7,3637.2,0.2751]
[1733189570886,0.76,3637.7,3637.0,0.2751]
[1733189572218,0.54344834,3637.8,3637.0,0.61754253]
[1733189572425,0.54344834,3637.8,3637.4,3.0]
[1733189572629,0.54344834,3637.8,3637.4,3.2751]
[1733189573521,0.54344834,3637.8,3637.1,0.2751]
[1733189575686,0.54344834,3637.8,3637.2,0.02748998]
[1733189575911,0.54344834,3637.8,3637.3,2.59277371]
[1733189576918,0.25607419,3637.7,3637.3,2.59277371]
[1733189577232,0.54344834,3637.8,3637.0,0.23205198]
[1733189577434,0.8071,3637.7,3636.5,3.14932528]
[1733189577600,0.25607419,3637.6,3636.5,3.14932528]
[1733189577785,0.41673644,3637.5,3636.6,0.2751]
[1733189577992,0.16066225,3637.5,3636.6,0.2751]
[1733189578421,0.16066225,3637.5,3636.5,3.38425417]
[1733189578621,0.16066225,3637.5,3636.6,3.0]
[1733189579123,0.16066225,3637.5,3636.9,3.14932528]
[1733189579310,0.8071,3637.7,3636.9,3.14932528]
[1733189579681,0.8071,3637.7,3636.9,3.42442528]
[1733189579887,0.8071,3637.7,3636.9,3.14932528]
[1733189580088,0.8071,3637.7,3636.5,3.38425417]
[1733189580619,0.8071,3637.7,3636.5,0.23492889]
[1733189580794,0.8071,3637.7,3636.2,0.2751]
[1733189581133,0.8071,3637.7,3636.2,3.2751]
[1733189581317,0.8071,3637.7,3636.2,0.2751]
[1733189581521,0.8171,3637.5,3636.1,3.14932528]
[1733189581823,0.8171,3637.3,3636.1,3.14932528]
[1733189582018,0.8171,3637.3,3635.3,3.14932528]
[1733189582234,0.8157,3637.1,3635.7,0.8071]
[1733189582439,0.54952463,3636.2,3635.9,3.14932528]
[1733189582738,0.54011364,3636.8,3636.0,0.02750067]
[1733189582891,0.25616819,3637.0,3635.9,3.14932528]
[1733189583243,0.8157,3637.1,3636.0,0.02749729]
[1733189583389,0.8157,3637.1,3636.3,3.14932528]
[1733189583586,0.8157,3637.1,3636.3,3.42442528]
[1733189583827,0.7801,3638.2,3636.7,3.14932528]
[1733189584030,0.7801,3638.2,3636.8,0.02749313]
[1733189584392,0.25591945,3638.1,3636.7,3.14932528]
[1733189584644,0.7801,3638.2,3636.8,0.02749312]
[1733189585508,0.55200121,3637.7,3636.8,0.02749312]
[1733189585918,0.8037,3637.6,3636.7,3.14932528]
[1733189586422,0.8037,3637.6,3636.3,3.2751]
[1733189586423,0.8037,3637.6,3636.3,6.14932528]
[1733189586596,0.55200121,3637.7,3636.0,0.2751]
[1733189586597,0.8037,3637.4,3636.0,3.2751]
[1733189586792,1.12953474,3636.9,3636.0,0.23579472]
[1733189587018,1.12953474,3636.9,3635.5,3.14932528]
[1733189587019,1.0595488,3636.8,3635.5,3.14932528]
[1733189587224,1.71850839,3636.9,3636.4,3.14932528]
[1733189587225,0.51127307,3636.7,3636.4,3.14932528]
[1733189587433,0.51127307,3636.6,3636.4,3.14932528]
[1733189587633,0.25542427,3637.0,3636.4,3.14932528]
[1733189587808,0.25542427,3636.9,3636.4,3.14932528]
[1733189588011,0.54307656,3637.2,3636.4,3.46425781]
[1733189589496,0.54307656,3637.2,3636.4,3.69482561]
[1733189589864,0.54307656,3637.2,3636.4,3.37989308]
[1733189591889,0.54307656,3637.2,3636.4,0.2305678]
[1733189592179,0.54307656,3637.2,3636.3,0.2552]
[1733189592480,0.54307656,3637.2,3636.3,0.48848937]
[1733189594766,0.54307656,3637.2,3636.3,0.51598405]
[1733189595162,0.54307656,3637.2,3636.3,0.48848937]
[1733189595363,0.54307656,3637.2,3636.4,0.02749468]
[1733189595731,0.54307656,3637.2,3636.3,0.48848937]
[1733189596063,0.54307656,3637.2,3636.4,0.34884894]
[1733189596221,0.8307,3637.6,3636.5,0.02749469]
[1733189596427,0.8307,3637.6,3636.4,0.57749167]
[1733189596828,0.8469,3637.9,3636.5,3.0]
[1733189597028,0.8469,3637.9,3636.6,0.30259122]
[1733189597223,1.24652253,3637.9,3636.7,0.38525912]
[1733189597464,1.24652253,3637.9,3636.8,0.02749123]
[1733189597764,1.24652253,3637.9,3636.9,0.2552]
[1733189597966,0.8469,3637.9,3636.9,0.2552]
[1733189598349,0.8387,3638.3,3637.0,0.02748942]
[1733189598557,0.8387,3638.3,3637.0,0.57748942]
[1733189598952,0.8387,3638.3,3637.0,0.02748942]
[1733189599155,0.54322101,3637.8,3637.2,0.2751]
[1733189599354,0.25559854,3638.7,3637.3,3.02748728]
[1733189599679,0.42761238,3638.6,3637.4,0.2552]
[1733189599886,0.25555076,3638.7,3637.5,0.02748415]
[1733189600041,0.25555076,3638.7,3637.7,3.0]
[1733189600243,0.55499905,3638.1,3637.9,0.2552]
[1733189600491,0.55499905,3638.1,3638.0,3.0]
[1733189600671,0.25555076,3639.1,3638.0,3.0]
[1733189600980,0.8712,3639.2,3638.1,0.02748055]
[1733189601189,0.8712,3639.2,3637.9,0.2552]
[1733189601398,3.14932528,3638.8,3637.5,0.5303]
[1733189601575,0.40888825,3639.9,3637.4,0.23696834]
[1733189601576,3.14932528,3638.4,3637.4,0.23696834]
[1733189601888,3.14932528,3638.4,3637.1,0.2552]
[1733189602047,0.55954791,3638.0,3637.1,0.2552]
[1733189602244,0.31493253,3638.3,3637.2,0.02748865]
[1733189602480,1.14585479,3638.7,3637.2,3.02748865]
[1733189602689,1.14585479,3638.7,3637.3,0.02748563]
[1733189603309,1.14585479,3638.7,3637.2,3.0]
[1733189603310,0.1,3638.2,3637.2,3.0]
[1733189603450,0.25535479,3638.1,3636.5,0.55]
[1733189603653,0.25535479,3638.0,3636.6,0.0274858]
[1733189603947,0.54914821,3638.4,3636.6,0.0274858]
[1733189603948,0.1,3638.2,3636.8,0.55]
[1733189604360,0.64914821,3638.4,3636.9,0.02748567]
[1733189604548,0.54914821,3638.4,3636.9,0.02748567]
[1733189605107,0.1,3638.2,3636.8,0.23584847]
[1733189605247,0.1,3638.2,3637.0,0.02748567]
[1733189605571,0.54914821,3638.4,3637.0,0.02748567]
[1733189605777,0.54914821,3638.4,3637.3,0.2751]
[1733189606151,0.54914821,3638.4,3637.4,0.02748568]
[1733189606389,0.1,3638.2,3637.3,0.2751]
[1733189607061,0.54914821,3638.4,3637.4,0.0274857]
[1733189607269,0.1,3638.2,3637.3,0.2751]
[1733189607591,0.54914821,3638.4,3637.3,0.50322606]
[1733189608092,0.54914821,3638.4,3637.4,0.02748401]
[1733189609558,0.54914821,3638.4,3637.4,0.02748327]
[1733189610405,0.25534293,3639.1,3637.5,0.2751]
[1733189610556,0.885,3639.4,3637.9,0.2751]
[1733189610758,0.14403429,3639.3,3638.0,0.02747789]
[1733189611057,0.1,3639.1,3638.1,0.2751]
[1733189611498,0.14403429,3639.3,3638.2,0.02747935]
[1733189612468,1.43134977,3639.4,3638.1,0.2751]
[1733189612691,1.43134977,3639.4,3638.3,0.2751]
[1733189612692,0.54634977,3639.4,3638.3,0.2751]
[1733189612857,0.8809,3639.8,3638.5,0.2751]
[1733189613056,0.8809,3639.8,3637.6,3.55]
[1733189613057,0.8809,3639.8,3638.6,0.85257381]
[1733189614195,1.44300917,3639.8,3638.6,0.85257381]
[1733189615173,0.8809,3639.8,3638.6,0.85257381]
[1733189616988,0.8809,3639.8,3638.6,0.02747381]
[1733189617278,0.8809,3639.8,3638.1,0.5774727]
[1733189617479,0.8809,3639.8,3638.3,0.55]
[1733189618059,0.8809,3639.8,3638.4,0.02747363]
[1733189619205,0.8809,3639.8,3638.5,0.02747286]
[1733189619406,0.8809,3639.8,3638.5,0.57747286]
[1733189619560,0.8809,3639.8,3638.5,0.55]
[1733189619760,0.8809,3639.8,3638.6,0.38247288]
[1733189620070,0.8809,3639.8,3638.5,0.55]
[1733189620276,0.8809,3639.8,3638.3,0.57747302]
[1733189621257,0.8809,3639.8,3638.4,0.1232]
[1733189621464,0.8809,3639.8,3639.0,3.0]
[1733189622100,0.8809,3639.8,3638.5,0.57747419]
[1733189622304,0.8809,3639.8,3638.5,0.73811156]
[1733189623901,1.40073536,3640.1,3638.8,3.6732]
[1733189624077,0.1,3640.8,3638.9,0.02746841]
[1733189624278,0.1,3640.8,3639.1,0.55]
[1733189624494,0.1,3640.8,3639.1,0.57746694]
[1733189624701,0.1,3640.5,3639.1,0.57746694]
[1733189625695,0.1,3640.9,3639.1,0.57746694]
[1733189625892,0.4704165,3640.9,3639.1,0.57746694]
[1733189626285,0.9434,3640.8,3638.7,3.14932528]
[1733189626482,0.9434,3640.8,3638.8,3.55]
[1733189627092,0.9434,3640.8,3639.2,0.2751]
[1733189627293,0.55771414,3640.6,3639.4,0.2751]
[1733189628510,0.55771414,3640.6,3638.9,0.2751]
[1733189628712,0.55771414,3640.6,3639.2,0.8251]
[1733189629290,0.876,3640.5,3639.2,0.2751]
[1733189629698,0.876,3640.5,3640.4,0.0027027]
[1733189629940,1.02937141,3640.5,3640.4,0.0027027]
[1733189631600,1.12937141,3640.5,3640.4,0.0027027]
[1733189632311,1.32937141,3640.5,3639.4,0.2751]
[1733189632651,1.32937141,3640.5,3636.8,0.28541745]
[1733189632652,0.9424,3639.9,3638.6,0.2751]
[1733189633161,0.25484516,3639.8,3638.1,3.14932528]
[1733189633332,0.9424,3639.9,3638.2,0.31493253]
[1733189633333,0.25484516,3639.7,3638.2,0.31493253]
[1733189633525,0.9424,3639.9,3638.3,0.2751]
[1733189633921,0.9424,3639.9,3638.2,3.31493253]
[1733189633922,0.9424,3639.9,3638.5,0.2751]
[1733189634342,0.9424,3639.9,3638.7,0.2751]
[1733189635364,0.1,3639.6,3638.3,0.2751]
[1733189635679,0.9321,3639.5,3638.3,0.2751]
[1733189636164,0.1,3639.6,3638.3,0.2751]